bitfinex-derivatives/quotes_ETHF0:USTF0_20250702
["timestamp","ask_amount","ask_price","bid_price","bid_amount"]
[1751496421912,0.77053,2594.5,2594.0,1.2642]
[1751496422116,0.7706,2594.3,2594.0,1.2642]
[1751496422317,0.7706,2594.3,2594.1,0.6559]
[1751496422516,0.77058,2594.4,2594.1,0.6559]
[1751496422715,0.77058,2594.4,2594.2,1.3693]
[1751496423515,11.404,2595.2,2594.2,6.3693]
[1751496423717,11.404,2595.2,2594.5,5.41861573]
[1751496424019,0.77039,2595.0,2594.6,2.662]
[1751496424314,55.473,2595.3,2594.6,1.2927]
[1751496424611,0.77038,2595.0,2594.7,1.3693]
[1751496424911,1.92578,2595.3,2594.7,1.3693]
[1751496425114,0.77044,2594.8,2594.6,1.2927]
[1751496425311,0.77042,2594.9,2594.6,1.2927]
[1751496425516,0.77043,2594.8,2594.6,1.2927]
[1751496426017,0.77042,2594.9,2594.6,1.2927]
[1751496426617,0.77042,2594.9,2594.7,1.3669]
[1751496427117,0.77043,2594.8,2594.7,1.3669]
[1751496427319,0.77046,2594.7,2594.6,1.2927]
[1751496428920,0.77045,2594.8,2594.6,1.2927]
[1751496429122,0.77046,2594.7,2594.6,1.2927]
[1751496429926,2.56252,2595.2,2594.6,1.2927]
[1751496430217,0.77046,2594.7,2594.6,1.2927]
[1751496430617,0.77046,2594.7,2594.6,0.6368]
[1751496430812,0.77058,2594.3,2594.2,0.6472]
[1751496431119,0.77058,2594.3,2594.2,1.3398]
[1751496431319,3.32342,2594.7,2594.2,1.3398]
[1751496431621,0.77058,2594.3,2594.2,1.3398]
[1751496431822,0.77056,2594.4,2594.2,1.3398]
[1751496432021,0.77058,2594.3,2594.2,1.3398]
[1751496433019,5.41861573,2595.4,2594.2,1.3398]
[1751496433220,3.63110265,2595.2,2594.4,5.41861573]
[1751496433420,0.77043,2594.9,2594.5,1.3973]
[1751496433620,0.77044,2594.8,2594.5,1.3973]
[1751496433817,0.77046,2594.7,2594.6,0.6472]
[1751496434217,1.92609,2594.8,2594.2,0.6926]
[1751496434422,0.77058,2594.3,2594.2,0.6926]
[1751496435226,2.04568,2594.3,2594.2,0.6926]
[1751496439229,0.77058,2594.3,2594.2,0.6926]
[1751496439424,0.77053,2594.5,2594.2,0.6926]
[1751496439630,0.77053,2594.5,2594.3,0.6593]
[1751496439822,0.77055,2594.4,2594.3,1.9277]
[1751496441629,14.00061,2594.8,2594.3,1.9277]
[1751496441825,1.0696546,2594.7,2594.3,1.9277]
[1751496442023,0.77055,2594.4,2594.3,1.9277]
[1751496442926,0.77054,2594.5,2594.3,1.9277]
[1751496443132,0.77055,2594.4,2594.3,1.9277]
[1751496443735,0.77054,2594.5,2594.3,1.9277]
[1751496443939,0.6965,2594.8,2594.3,1.9277]
[1751496444630,0.7705,2594.6,2594.3,1.9277]
[1751496444829,0.6965,2594.8,2594.3,1.9277]
[1751496445027,0.77055,2594.4,2594.3,0.6593]
[1751496447132,0.77058,2594.3,2594.2,0.6926]
[1751496447934,3.28022,2594.5,2594.2,0.6926]
[1751496448136,0.77058,2594.3,2594.2,0.6926]
[1751496453135,0.7707,2593.9,2593.8,0.6921]
[1751496453334,0.7707,2593.9,2593.8,1.3402]
[1751496453838,0.77069,2594.0,2593.8,1.3402]
[1751496454035,0.7707,2593.9,2593.8,1.3402]
[1751496455940,3.32069,2594.3,2593.8,1.3402]
[1751496456141,0.77069,2594.0,2593.8,1.3402]
[1751496456543,0.7707,2593.9,2593.8,1.3402]
[1751496457545,0.7707,2594.0,2593.8,1.3402]
[1751496457744,0.7707,2593.9,2593.8,1.3402]
[1751496458848,1.92654,2594.2,2593.8,1.3402]
[1751496459348,0.7707,2593.9,2593.8,1.3402]
[1751496459542,0.77069,2594.0,2593.8,1.3402]
[1751496459847,0.7707,2593.9,2593.8,1.3402]
[1751496460647,0.77079,2593.6,2593.5,2.61449772]
[1751496460847,0.77079,2593.6,2593.5,0.681]
[1751496462044,3.05981968,2595.1,2593.5,52.68640126]
[1751496462246,5.23294361,2596.0,2595.0,5.22899544]
[1751496462449,0.76999,2596.4,2595.9,2.61449772]
[1751496462646,0.6734,2596.7,2595.1,104.2181]
[1751496462647,0.94425208,2596.3,2596.2,2.61449772]
[1751496462848,0.94425208,2596.3,2596.2,3.17105821]
[1751496463154,2.61449772,2597.8,2596.2,13.07026237]
[1751496463353,2.61449772,2597.8,2597.1,2.61449772]
[1751496463649,2.61449772,2597.8,2597.2,0.79188559]
[1751496463650,0.76969,2597.4,2597.2,0.79188559]
[1751496463854,0.76969,2597.4,2597.3,0.79188559]
[1751496464851,5.76969,2597.4,2597.3,5.59e-06]
[1751496465050,0.76981,2596.9,2596.8,0.72376929]
[1751496465251,0.77,2596.3,2595.9,3.07506291]
[1751496465453,0.77002,2596.2,2596.0,1.2877]
[1751496465755,0.77008,2596.0,2595.9,3.07506291]
[1751496465951,0.77008,2596.0,2595.9,0.35170383]
[1751496466147,11.19440677,2596.0,2595.9,0.35170383]
[1751496467357,5.77008,2596.0,2595.9,0.35170383]
[1751496468150,7.16508,2596.0,2595.9,0.35170383]
[1751496469551,2.16508,2596.0,2595.9,0.35170383]
[1751496470350,2.16508,2596.0,2595.9,3.83e-06]
[1751496470553,2.82938,2596.0,2595.9,3.83e-06]
[1751496471448,7.82938,2596.0,2595.9,3.83e-06]
[1751496472053,1.92528,2595.9,2595.1,1.44185]
[1751496472258,3.30715,2595.8,2595.1,1.81503807]
[1751496472460,0.77028,2595.4,2595.2,2.06481]
[1751496472653,0.77029,2595.3,2595.2,1.2945]
[1751496472951,0.77032,2595.2,2595.1,1.14354546]
[1751496473258,0.77035,2595.1,2595.0,1.14354546]
[1751496473454,0.77041,2594.9,2594.8,1.14354546]
[1751496473755,1.92604,2594.9,2594.5,1.14354546]
[1751496474155,2.0628,2595.1,2594.6,5.42432677]
[1751496474358,0.77046,2594.7,2594.6,6.19480677]
[1751496474959,0.77046,2594.7,2594.6,7.33835223]
[1751496475155,0.77045,2594.8,2594.6,5.42432677]
[1751496475360,0.77043,2594.8,2594.7,1.3393]
[1751496475862,0.77042,2594.9,2594.7,1.3393]
[1751496476061,2.59609,2595.4,2594.7,1.3393]
[1751496476261,0.7704,2595.0,2594.9,0.7704]
[1751496476457,0.77041,2594.9,2594.8,0.77042]
[1751496476754,0.77041,2594.9,2594.8,2.10972]
[1751496476959,0.7704,2595.0,2594.8,2.68001155]
[1751496477261,0.7704,2595.0,2594.9,0.57029155]
[1751496478760,0.77036,2595.1,2595.0,0.77037]
[1751496478960,0.77034,2595.2,2595.0,2.68696155]
[1751496479162,0.77034,2595.2,2595.1,1.34064155]
[1751496479362,0.77034,2595.2,2595.1,0.57029155]
[1751496480564,0.77032,2595.3,2595.2,0.77029]
[1751496480764,0.77028,2595.4,2595.3,0.77027]
[1751496480964,0.77026,2595.5,2595.4,0.77024]
[1751496481164,0.77026,2595.5,2595.4,3.27943783]
[1751496481562,0.77021,2595.6,2595.5,0.77023]
[1751496481762,0.77021,2595.6,2595.5,8.0263546]
[1751496482065,0.77021,2595.6,2595.5,7.2561246]
[1751496482266,0.77021,2595.6,2595.5,7.45605677]
[1751496482563,0.77021,2595.6,2595.5,8.02856856]
[1751496482762,0.77016,2595.8,2595.7,0.77015]
[1751496482958,0.77009,2596.0,2595.7,0.57251179]
[1751496483164,0.77011,2595.9,2595.8,7.26353856]
[1751496484359,0.77011,2595.9,2595.8,8.03367856]
[1751496484555,0.77011,2595.9,2595.8,1.83921179]
[1751496484759,0.77011,2595.9,2595.8,0.57251179]
[1751496485067,6.19443677,2595.9,2595.8,1.79e-06]
[1751496485658,0.77029,2595.3,2595.2,1.91397526]
[1751496486168,0.77029,2595.3,2595.2,3.22447526]
[1751496489062,0.77029,2595.3,2595.2,2.08081]
[1751496489265,1.92543,2595.7,2595.3,0.77028]
[1751496489460,0.77027,2595.4,2595.3,1.14576293]
[1751496489665,0.77027,2595.4,2595.3,2.45226293]
[1751496490164,0.77032,2595.2,2595.1,1.81886293]
[1751496490357,0.6338,2595.8,2595.1,6.09742677]
[1751496490666,0.77026,2595.4,2595.3,1.14629783]
[1751496490961,0.77032,2595.2,2595.1,0.6731]
[1751496491166,0.77032,2595.2,2595.1,1.44345]
[1751496491767,0.77032,2595.2,2595.1,0.6731]
[1751496492762,0.77032,2595.2,2595.1,1.9353]
[1751496493264,0.6338,2595.8,2595.1,9.64858008]
[1751496493465,0.77026,2595.5,2595.4,1.1481812]
[1751496493666,0.77026,2595.5,2595.4,1.9297]
[1751496494166,0.77026,2595.5,2595.4,2.69996]
[1751496494563,0.77026,2595.5,2595.4,1.9297]
[1751496494968,0.77026,2595.4,2595.3,1.53197074]
[1751496495164,0.77029,2595.3,2595.2,2.28895331]
[1751496496270,0.77032,2595.2,2595.1,0.6731]
[1751496496670,0.77032,2595.2,2595.1,1.44345]
[1751496497470,1.92567,2595.4,2595.1,1.44345]
[1751496497670,0.77026,2595.4,2595.3,2.30437435]
[1751496502674,2.05536,2595.4,2595.3,2.30437435]
[1751496502869,0.77026,2595.4,2595.3,2.30437435]
[1751496503069,0.77029,2595.3,2595.2,2.30437435]
[1751496503267,0.77029,2595.3,2595.2,1.53674699]
[1751496503467,0.77032,2595.2,2595.1,1.53674699]
[1751496503670,1.43292,2595.2,2595.1,1.53674699]
[1751496503871,1.43292,2595.2,2595.0,2.30437435]
[1751496503872,0.77035,2595.1,2595.0,2.30437435]
[1751496504068,1.92603,2594.9,2594.6,3.07506291]
[1751496504377,0.77058,2594.3,2594.2,3.77176291]
[1751496504575,0.77058,2594.3,2594.2,4.54237291]
[1751496504771,0.77058,2594.3,2594.2,1.46731]
[1751496504977,0.77058,2594.3,2594.2,2.0142]
[1751496505177,0.77058,2594.3,2594.2,0.6967]
[1751496508476,0.77067,2594.0,2593.9,0.7023]
[1751496508775,0.7707,2593.9,2593.8,0.6823]
[1751496510382,0.7707,2593.9,2593.8,1.83168927]
[1751496510784,0.7707,2593.9,2593.8,2.60241927]
[1751496510978,0.7707,2593.9,2593.8,1.83168927]
[1751496511482,0.7707,2593.9,2593.8,1.45303]
[1751496512984,0.7707,2593.9,2593.8,0.6823]
[1751496513179,0.77073,2593.8,2593.7,1.14938927]
[1751496513383,0.77073,2593.8,2593.7,1.92014927]
[1751496514585,0.77072,2593.9,2593.8,0.7707]
[1751496515484,0.77069,2594.0,2593.9,0.77067]
[1751496515682,0.77073,2593.9,2593.8,0.77071]
[1751496516486,0.7707,2594.0,2593.9,0.77066]
[1751496516887,0.6645,2594.2,2594.1,0.77064]
[1751496517086,1.92633,2594.5,2594.2,0.77058]
[1751496517087,0.7706,2594.3,2594.2,0.77058]
[1751496517486,1.3019,2594.7,2594.0,0.7002]
[1751496517685,40.8,2595.3,2594.7,0.77043]
[1751496517686,0.77046,2594.8,2594.7,0.77043]
[1751496518086,1.4624,2594.9,2594.8,0.77043]
[1751496518793,0.77046,2594.8,2594.7,0.77044]
[1751496519484,0.692,2594.9,2594.8,0.77043]
[1751496519679,0.692,2594.9,2594.6,0.7002]
[1751496519680,11.344,2595.0,2594.9,0.7704]
[1751496520683,1.45377,2595.4,2594.9,1.92601]
[1751496520983,0.6835,2595.4,2595.3,0.77029]
[1751496521385,11.343,2595.5,2595.4,0.77026]
[1751496521780,1.3213,2595.9,2595.2,5.42432677]
[1751496521985,2.09141,2595.9,2595.8,0.77014]
[1751496523088,1.3213,2595.9,2595.8,0.77014]
[1751496523892,0.6835,2595.9,2595.8,0.77014]
[1751496524092,12.11302,2596.2,2596.1,0.77005]
[1751496524391,11.343,2596.2,2596.1,0.77005]
[1751496525096,0.77006,2596.1,2596.0,0.77007]
[1751496527899,0.77006,2596.1,2595.8,0.6373]
[1751496527900,11.343,2596.2,2596.1,0.77005]
[1751496528397,55.502,2596.4,2596.3,0.76999]
[1751496528599,0.76993,2596.5,2596.4,0.76996]
[1751496528795,12.0187,2596.7,2596.4,0.76996]
[1751496528796,52.8187,2596.7,2596.4,0.76996]
[1751496529098,53.58859,2596.7,2596.6,0.7699]
[1751496529298,12.78859,2596.7,2596.6,0.7699]
[1751496529697,12.0187,2596.7,2596.6,0.7699]
[1751496530292,12.78857,2596.7,2596.6,0.7699]
[1751496530701,0.76993,2596.6,2596.5,0.76991]
[1751496532595,12.0187,2596.7,2596.3,2.002]
[1751496532799,12.0187,2596.7,2596.3,0.6341]
[1751496533000,0.76994,2596.5,2596.4,0.76993]
[1751496534603,0.76996,2596.4,2596.3,1.40407]
[1751496535304,0.76996,2596.4,2596.3,0.6341]
[1751496535805,0.77005,2596.1,2596.0,0.77006]
[1751496536603,0.77004,2596.2,2596.1,0.77004]
[1751496537001,0.77007,2596.1,2596.0,0.77006]
[1751496537504,0.77005,2596.2,2596.1,0.77003]
[1751496540208,0.77008,2596.0,2595.9,0.77008]
[1751496540400,12.0187,2596.7,2595.8,0.7001]
[1751496540602,12.09289,2596.7,2596.6,0.7699]
[1751496541607,11.323,2596.7,2596.6,0.7699]
[1751496542107,12.09287,2596.7,2596.6,0.7699]
[1751496542303,11.323,2596.7,2596.6,0.7699]
[1751496542504,0.76977,2597.1,2596.6,1.92476]
[1751496542708,0.76977,2597.1,2597.0,0.76976]
[1751496543206,56.25273,2597.2,2597.1,0.76975]
[1751496543406,0.76976,2597.1,2597.0,0.76976]
[1751496544413,55.483,2597.2,2596.8,0.6603]
[1751496544613,56.25275,2597.2,2597.1,0.76975]
[1751496544909,0.76977,2597.1,2597.0,0.76976]
[1751496545307,56.25274,2597.2,2597.1,0.76975]
[1751496545610,0.76978,2597.1,2597.0,0.76976]
[1751496547603,0.76978,2597.0,2596.9,2.16581]
[1751496547807,0.76981,2596.9,2596.8,0.6603]
[1751496548002,57.40731,2597.2,2596.6,1.14726991]
[1751496548202,1.92446,2597.0,2596.4,1.91720991]
[1751496548401,0.76999,2596.3,2596.2,1.91739045]
[1751496548604,1.92477,2596.6,2596.1,1.14739045]
[1751496548605,0.77002,2596.2,2596.1,1.14739045]
[1751496548808,0.77008,2596.0,2595.9,1.14739045]
[1751496549005,5.42432677,2596.2,2595.7,2.44649045]
[1751496549211,0.77003,2596.2,2596.1,0.77003]
[1751496550912,0.77,2596.3,2596.2,0.77]
[1751496551509,47.788,2596.6,2596.5,0.76993]
[1751496552510,48.5579,2596.6,2596.5,0.76993]
[1751496553210,47.788,2596.6,2596.5,0.76993]
[1751496553608,48.5579,2596.6,2596.5,0.76993]
[1751496554012,0.76993,2596.5,2596.4,1.91733045]
[1751496556509,0.76993,2596.5,2596.4,1.14739045]
[1751496556714,0.76999,2596.3,2596.2,1.52369221]
[1751496556909,0.77002,2596.2,2596.1,1.52369221]
[1751496557114,0.77005,2596.1,2596.0,1.52369221]
[1751496557312,0.77005,2596.1,2596.0,2.29375221]
[1751496557914,0.77011,2595.9,2595.8,2.29382221]
[1751496559410,0.77009,2596.0,2595.9,0.77008]
[1751496562816,0.77011,2595.9,2595.8,2.06532]
[1751496563016,0.7701,2596.0,2595.9,0.77008]
[1751496565119,1.92515,2596.1,2595.7,2.99023221]
[1751496565309,0.77014,2595.8,2595.7,1.46654]
[1751496566109,0.77014,2595.8,2595.7,0.6964]
[1751496566313,0.77014,2595.8,2595.7,1.46657]
[1751496567516,0.77014,2595.8,2595.7,0.6964]
[1751496568319,0.7702,2595.6,2595.5,1.44972]
[1751496568513,0.7702,2595.6,2595.5,1.3764]
[1751496568719,0.7702,2595.6,2595.5,1.46713]
[1751496569818,0.7702,2595.6,2595.5,0.6969]
[1751496570119,0.7702,2595.6,2595.5,1.46713]
[1751496571014,0.7702,2595.6,2595.5,0.6969]
[1751496571217,0.7702,2595.6,2595.5,1.46713]
[1751496571921,0.7702,2595.6,2595.5,0.6969]
[1751496572527,0.7702,2595.6,2595.5,1.46713]
[1751496572718,0.7702,2595.6,2595.5,0.6969]
[1751496572919,0.7702,2595.6,2595.5,1.46713]
[1751496573221,0.77016,2595.8,2595.7,0.77014]
[1751496573825,11.302,2595.9,2595.7,0.77014]
[1751496574022,0.77016,2595.8,2595.7,0.77014]
[1751496577729,0.7702,2595.6,2595.5,3.60169221]
[1751496578032,0.7702,2595.6,2595.5,1.46713]
[1751496580232,0.7702,2595.6,2595.5,0.6969]
[1751496581433,0.7702,2595.6,2595.5,1.46713]
[1751496581628,0.7702,2595.6,2595.5,0.6969]
[1751496581828,0.7702,2595.6,2595.5,1.46713]
[1751496584030,11.302,2595.9,2595.6,0.7702]
[1751496584235,11.302,2595.9,2595.8,0.77014]
[1751496584533,12.07211,2595.9,2595.8,0.77014]
[1751496584728,12.07307,2596.1,2596.0,0.77005]
[1751496584930,48.48407,2596.1,2596.0,0.77005]
[1751496585335,48.48407,2596.1,2596.0,1.47105]
[1751496586733,1.45035,2596.2,2596.1,0.77005]
[1751496586933,49.15835,2596.2,2596.1,0.77005]
[1751496587636,0.77005,2596.1,2596.0,1.47106]
[1751496588936,0.77005,2596.1,2596.0,0.701]
[1751496589335,0.77005,2596.1,2596.0,1.47108]
[1751496591138,0.77005,2596.1,2596.0,0.701]
[1751496591341,52.92573761,2596.2,2595.8,2.94071221]
[1751496591541,3.38245761,2596.0,2595.9,2.29378221]
[1751496592838,3.38245761,2596.0,2595.9,0.77009]
[1751496593042,3.38245761,2596.0,2595.9,1.52369221]
[1751496593238,3.38245761,2596.0,2595.9,0.77011]
[1751496593546,3.38245761,2596.0,2595.9,2.29380221]
[1751496594743,0.00045761,2596.0,2595.9,2.29380221]
[1751496594945,0.77055761,2596.0,2595.9,0.77011]
[1751496595145,0.77011,2595.9,2595.8,3.59181221]
[1751496595344,0.77011,2595.9,2595.8,2.06812]
[1751496595541,0.77011,2595.9,2595.8,3.60604193]
[1751496596146,0.77011,2595.9,2595.8,1.53792193]
[1751496596336,0.77014,2595.8,2595.7,0.77015]
[1751496598440,36.379,2595.9,2595.8,0.77014]
[1751496599344,37.14913,2595.9,2595.8,0.77014]
[1751496600444,0.6361,2596.1,2595.7,1.53792193]
[1751496600644,36.374,2596.0,2595.9,0.77011]
[1751496602441,37.14408,2596.0,2595.9,0.77011]
[1751496603242,0.77011,2595.9,2595.8,1.53792193]
[1751496603443,0.77014,2595.8,2595.7,1.53792193]
[1751496603642,0.77014,2595.8,2595.7,2.30809193]
[1751496604449,3.38248761,2595.9,2595.8,0.77014]
[1751496605454,0.77013,2595.9,2595.8,0.77014]
[1751496605754,37.12613,2595.9,2595.8,0.77014]
[1751496606155,37.12611,2595.9,2595.8,0.77014]
[1751496607453,36.351,2595.9,2595.8,0.77014]
[1751496607650,36.351,2595.9,2595.8,3.59806193]
[1751496607848,37.12111,2595.9,2595.8,3.59806193]
[1751496608053,37.12111,2595.9,2595.8,2.06014]
[1751496610754,37.12111,2595.9,2595.8,0.77014]
[1751496611163,36.351,2595.9,2595.8,0.77014]
[1751496611460,36.351,2595.9,2595.8,2.09034]
[1751496611764,37.12111,2595.9,2595.8,2.09034]
[1751496613361,37.12111,2595.9,2595.8,3.62826193]
[1751496613561,36.351,2595.9,2595.8,3.62826193]
[1751496613958,11.282,2596.4,2596.1,0.77002]
[1751496614161,0.77005,2596.1,2596.0,2.308754]
[1751496614356,0.77005,2596.1,2596.0,3.660454]
[1751496615858,3.38240761,2596.1,2596.0,2.308754]
[1751496616057,3.38240761,2596.1,2595.9,1.538694]
[1751496616058,0.77008,2596.0,2595.9,1.538694]
[1751496616256,0.77011,2595.9,2595.8,1.538694]
[1751496616460,0.77014,2595.8,2595.7,2.308844]
[1751496616961,0.77014,2595.8,2595.7,1.538694]
[1751496617364,3.38249761,2595.8,2595.7,1.538694]
[1751496618362,3.38249761,2595.8,2595.7,2.308864]
[1751496618561,0.77014,2595.8,2595.7,2.308864]
[1751496618764,36.325,2595.9,2595.8,0.77014]
[1751496618765,37.09514,2595.9,2595.8,0.77014]
[1751496619057,36.43914,2595.9,2595.8,1.92443888]
[1751496619264,36.43914,2595.9,2595.8,0.77014]
[1751496619762,0.77014,2595.8,2595.7,2.308844]
[1751496620063,0.77014,2595.8,2595.7,1.538694]
[1751496620464,0.77017,2595.7,2595.6,2.895594]
[1751496620854,0.77017,2595.7,2595.6,3.665794]
[1751496621059,0.77017,2595.7,2595.6,4.428494]
[1751496622262,0.77016,2595.8,2595.7,0.77016]
[1751496622556,0.77016,2595.8,2595.7,2.30927089]
[1751496623361,0.77016,2595.8,2595.7,1.53911089]
[1751496623562,0.77016,2595.8,2595.7,2.30928089]
[1751496624062,0.77016,2595.8,2595.7,1.53911089]
[1751496624863,0.77016,2595.8,2595.6,2.88978]
[1751496624864,0.77017,2595.7,2595.6,2.30181089]
[1751496625262,0.77017,2595.7,2595.6,3.07201089]
[1751496625761,3.38251761,2595.8,2595.7,0.77017]
[1751496625961,3.38251761,2595.8,2595.7,2.3094263]
[1751496626664,3.38251761,2595.8,2595.7,3.6935263]
[1751496628666,2.61235761,2595.8,2595.7,3.6935263]
[1751496628968,36.43913,2595.9,2595.8,0.77014]
[1751496629766,36.43913,2595.9,2595.8,2.08414]
[1751496632064,0.7422,2596.1,2596.0,0.77008]
[1751496632270,69.0373419,2596.4,2596.3,0.76999]
[1751496632469,66.755,2596.4,2596.3,0.76999]
[1751496632870,67.52496,2596.4,2596.3,0.76999]
[1751496633071,103.036,2596.4,2596.3,0.76999]
[1751496633568,66.755,2596.4,2596.3,0.76999]
[1751496633770,103.032,2596.4,2596.3,0.76999]
[1751496633975,103.032,2596.4,2596.3,2.08939]
[1751496634366,103.80196,2596.4,2596.3,2.08939]
[1751496634667,103.032,2596.4,2596.3,2.08939]
[1751496635263,55.473,2596.4,2596.3,2.08939]
[1751496635471,47.527,2596.6,2596.5,0.76993]
[1751496635672,0.7293,2596.8,2596.4,1.92487]
[1751496635971,13.86835761,2597.0,2596.5,0.7731]
[1751496636170,36.27,2596.9,2596.8,0.76982]
[1751496636569,37.03981,2596.9,2596.8,0.76982]
[1751496637370,36.27,2596.9,2596.8,0.76982]
[1751496638170,37.03981,2596.9,2596.8,0.76982]
[1751496638367,36.27,2596.9,2596.8,0.76982]
[1751496638572,37.03981,2596.9,2596.8,0.76982]
[1751496638767,37.03981,2596.9,2596.7,0.76984]
[1751496638972,37.03981,2596.9,2596.8,0.76984]
[1751496639168,37.03981,2596.9,2596.6,1.3203]
[1751496639374,37.03981,2596.9,2596.8,0.76984]
[1751496640173,0.76984,2596.8,2596.7,0.76985]
[1751496640374,3.38219761,2596.8,2596.7,0.76985]
[1751496640971,2.61235761,2596.8,2596.7,0.76985]
[1751496642172,3.38219761,2596.8,2596.7,0.76985]
[1751496643981,4.53698761,2596.8,2596.2,1.5392563]
[1751496644180,2.61235761,2596.3,2596.0,0.77007]
[1751496644376,0.77011,2595.9,2595.8,1.51053]
[1751496644581,0.77011,2595.9,2595.8,0.7404]
[1751496644774,3.38246761,2595.9,2595.8,0.7404]
[1751496645481,36.24,2596.0,2595.9,0.77011]
[1751496646684,36.24,2596.0,2595.9,2.15721]
[1751496648180,3.38242761,2596.1,2596.0,0.77008]
[1751496648381,2.61235761,2596.1,2596.0,0.77008]
[1751496649185,3.38240761,2596.1,2596.0,0.77008]
[1751496649988,2.61235761,2596.1,2596.0,0.77008]
[1751496650782,3.38240761,2596.1,2596.0,0.77008]
[1751496650987,3.38240761,2596.1,2595.8,0.7404]
[1751496650988,3.38240761,2596.1,2595.9,0.77009]
[1751496651187,3.38240761,2596.1,2596.0,0.77008]
[1751496651888,3.38240761,2596.1,2595.9,0.77009]
[1751496652087,0.77008,2596.0,2595.9,0.77009]
[1751496653589,4.11262761,2596.1,2596.0,0.77008]
[1751496654089,4.11263761,2596.1,2595.9,0.77009]
[1751496654389,0.77009,2596.0,2595.9,0.7701]
[1751496655292,4.11262761,2596.1,2596.0,0.77008]
[1751496655596,0.77008,2596.0,2595.9,0.77009]
[1751496656091,4.11262761,2596.1,2595.9,0.77009]
[1751496656290,4.11262761,2596.1,2596.0,0.77008]
[1751496656891,4.11261761,2596.1,2596.0,0.77008]
[1751496657691,4.2069619,2596.8,2596.3,0.76999]
[1751496657889,0.76995,2596.5,2596.3,0.76999]
[1751496658090,36.97796,2596.4,2596.3,0.76999]
[1751496658290,0.76994,2596.5,2596.4,0.76995]
[1751496658491,0.76996,2596.4,2596.3,0.76997]
[1751496658789,36.206,2596.4,2596.3,0.76997]
[1751496659087,38.81835761,2596.4,2596.2,1.4955]
[1751496659293,0.76999,2596.3,2596.2,0.7255]
[1751496660294,0.76999,2596.3,2596.2,1.49552]
[1751496660483,39.58833761,2596.4,2596.2,1.49552]
[1751496660685,39.58833761,2596.4,2596.3,0.76999]
[1751496660888,39.58833761,2596.4,2596.2,1.4955]
[1751496661088,38.81835761,2596.4,2596.3,0.76999]
[1751496661786,50.03835761,2596.4,2596.3,0.76999]
[1751496661985,3.4055,2596.7,2596.5,0.76993]
[1751496661986,11.228,2596.6,2596.5,0.76993]
[1751496662187,0.76993,2596.5,2596.4,0.76994]
[1751496662494,0.76996,2596.4,2596.3,2.13657]
[1751496662689,3.38229761,2596.5,2596.4,0.76996]
[1751496663287,11.228,2596.6,2596.5,0.76993]
[1751496663586,11.227,2597.1,2597.0,0.76978]
[1751496663986,47.417,2597.1,2597.0,0.76978]
[1751496664183,47.416,2597.1,2597.0,0.76978]
[1751496664390,48.18575,2597.1,2597.0,0.76978]
[1751496665084,47.416,2597.1,2597.0,0.76978]
[1751496665585,48.18575,2597.1,2597.0,0.76978]
[1751496665788,11.99675,2597.1,2597.0,0.76978]
[1751496665990,47.416,2597.1,2597.0,0.76978]
[1751496667389,11.99675,2597.1,2597.0,0.76978]
[1751496667695,47.404,2597.1,2597.0,0.76978]
[1751496667893,47.403,2597.1,2597.0,0.76978]
[1751496668486,2.2823419,2597.8,2596.9,2.61235761]
[1751496668686,11.9819,2597.7,2597.1,4.53674761]
[1751496668892,38.78635761,2597.6,2597.2,1.3012]
[1751496669095,36.174,2597.6,2597.5,0.76963]
[1751496669290,15.36383761,2597.7,2597.6,0.7696]
[1751496669497,50.76625761,2597.7,2597.6,0.7696]
[1751496669691,47.398,2597.7,2597.6,0.7696]
[1751496669896,0.76961,2597.6,2597.4,2.0846]
[1751496670199,36.93761,2597.6,2597.5,0.76963]
[1751496670692,96.9402,2598.0,2597.4,2.0846]
[1751496670995,0.76957,2597.8,2597.6,0.76959]
[1751496671195,0.76957,2597.8,2597.6,2.07079]
[1751496671397,0.76957,2597.8,2597.7,0.7334]
[1751496671898,50.77089761,2597.9,2597.7,1.50297]
[1751496672093,0.76955,2597.8,2597.7,1.50297]
[1751496672297,50.77087761,2597.9,2597.7,1.50296]
[1751496672494,50.00135761,2597.9,2597.8,0.76955]
[1751496672698,50.77087761,2597.9,2597.7,1.50296]
[1751496672890,50.77087761,2597.9,2597.7,0.7334]
[1751496673199,0.76955,2597.8,2597.7,0.7334]
[1751496673793,0.76955,2597.8,2597.7,1.50297]
[1751496674094,0.76955,2597.8,2597.7,0.7334]
[1751496678298,3.26394,2598.4,2597.7,3.34575761]
[1751496678599,0.7695,2598.0,2597.9,0.76951]
[1751496679398,0.76952,2597.9,2597.8,1.3686]
[1751496679696,2.61235761,2597.9,2597.7,0.7334]
[1751496679901,0.76954,2597.8,2597.7,1.50297]
[1751496680297,0.76954,2597.8,2597.7,0.7334]
[1751496680601,0.76954,2597.8,2597.7,1.50297]
[1751496681102,13.5553,2599.5,2597.7,8.34575761]
[1751496681303,0.76931,2598.6,2598.2,3.38176761]
[1751496681497,0.76934,2598.5,2598.3,2.0436]
[1751496681701,0.76936,2598.5,2598.3,2.0436]
[1751496682802,0.76936,2598.5,2598.4,0.76937]
[1751496682998,2.61235761,2598.6,2598.5,0.76934]
[1751496683304,38.73435761,2598.6,2598.5,0.76934]
[1751496683802,2.61235761,2598.6,2598.5,0.76934]
[1751496683993,38.73435761,2598.6,2598.5,0.76934]
[1751496684398,0.7693,2598.7,2598.6,0.76931]
[1751496684598,36.8893,2598.7,2598.5,0.76932]
[1751496684796,0.76934,2598.5,2598.4,0.76936]
[1751496685500,3.38168761,2598.6,2598.4,0.76936]
[1751496685803,36.113,2598.6,2598.5,0.76934]
[1751496688504,11.195,2598.7,2598.6,0.76931]